fUSD/lending_fUSD_20251215
["ID","MTS","AMOUNT","RATE_DAILY","PERIOD"]
[398533131,1765799432854,-150.0,0.00016725,2]
[398533132,1765799432864,-150.0,0.00016725,2]
[398533133,1765799432873,-188.37637361,0.0001676,2]
[398533134,1765799432883,-2840.0027352,0.00016788,2]
[398533135,1765799432892,-211.52,0.00016807,2]
[398533136,1765799432902,-323.34,0.00016816,2]
[398533137,1765799432911,-1014.0,0.00016836,2]
[398533138,1765799432920,-500.0,0.00016836,2]
[398533139,1765799432929,-500.0,0.00016836,2]
[398533140,1765799432938,-150.0,0.00016836,2]
[398533141,1765799432948,-500.0,0.00016836,2]
[398533142,1765799432957,-426.0,0.00016836,2]
[398533143,1765799432966,-500.0,0.00016836,2]
[398533144,1765799432976,-150.0,0.00016862,2]
[398533145,1765799432985,-150.88226754,0.00016862,2]
[398533146,1765799432994,-500.0,0.00016862,2]
[398533147,1765799433003,-153.18226241,0.00016862,2]
[398533148,1765799433012,-152.31948268,0.00016862,2]
[398533149,1765799433022,-263.1975105,0.00016862,2]
[398533150,1765799433034,-240.3363192,0.000169,2]
[398533151,1765799433043,-1285.24582979,0.000169,2]
[398533152,1765799433052,-500.0,0.00016904,2]
[398533153,1765799433061,-1014.0,0.00016973,2]
[398533154,1765799433070,-500.0,0.00016973,2]
[398533155,1765799433080,-600.0,0.00016973,2]
[398533156,1765799433089,-150.0,0.00016973,2]
[398533157,1765799433099,-500.0,0.00016973,2]
[398533158,1765799433108,-426.0,0.00016973,2]
[398533159,1765799433117,-500.0,0.00016973,2]
[398533160,1765799433127,-876.18,0.00016986,2]
[398533161,1765799433136,-151.0,0.00016997,2]
[398533162,1765799433145,-481.25235646,0.00016998,2]
[398533163,1765799433155,-4431.6536648,0.00016998,2]
[398533164,1765799433165,-150.0,0.00016998,2]
[398533165,1765799433175,-200.0,0.00016999,2]
[398533166,1765799433184,-500.0,0.00016999,2]
[398533167,1765799433193,-654.24,0.00016999,2]
[398533168,1765799433204,-294.21312608,0.00016999,2]
[398533169,1765799433216,-360.02687392,0.00016999,2]
[398533170,1765799433225,-654.24,0.00016999,2]
[398533171,1765799433235,-168.52586085,0.00016999,2]
[398533172,1765799433246,-485.71413915,0.00016999,2]
[398533173,1765799433255,-654.24,0.00016999,2]
[398533174,1765799433265,-654.24,0.00016999,2]
[398533175,1765799433274,-654.24,0.00016999,2]
[398533176,1765799433284,-654.24,0.00016999,2]
[398533177,1765799433293,-30.46408313,0.00016999,2]
[398533178,1765799433309,-623.77591687,0.00016999,2]
[398533179,1765799433319,-654.24,0.00016999,2]
[398533180,1765799433328,-654.24,0.00016999,2]
[398533181,1765799433338,-654.24,0.00016999,2]
[398533182,1765799433347,-654.24,0.00016999,2]
[398533183,1765799433357,-403.26545359,0.00016999,2]
[398533196,1765799438627,-250.97454641,0.00016999,2]
[398533197,1765799438637,-654.24,0.00016999,2]
[398533198,1765799438646,-654.24,0.00016999,2]
[398533199,1765799438656,-654.24,0.00016999,2]
[398533200,1765799438665,-654.24,0.00016999,2]
[398533201,1765799438675,-654.24,0.00016999,2]
[398533202,1765799438684,-23.44665798,0.00016999,2]
[398533203,1765799438696,-568.6437948,0.00016999,2]
[398533208,1765799440244,-62.14954722,0.00016999,2]
[398533209,1765799440253,-654.2938866,0.00016999,2]
[398533210,1765799440263,-688.63662645,0.00016999,2]
[398533216,1765799441087,-1.7e-07,0.00016999,2]
[398533217,1765799441098,-254.48876124,0.00016999,2]
[398533226,1765799443123,-588.01461214,0.00016999,2]
[398533227,1765799443132,-221.550301,0.00016999,2]
[398533228,1765799443142,-101071.11552198,0.00017,2]
[398533240,1765799479012,-784.12384435,0.00015796,2]
[398533241,1765799481241,-325.96215171,0.00015796,2]
[398533242,1765799482757,-300.0,0.00015796,2]
[398533243,1765799484458,-220.99585294,0.00015796,2]
[398533244,1765799485963,-254.38512817,0.00015796,2]
[398533245,1765799492535,-262.49552809,0.00015796,2]
[398533247,1765799496826,-215.23006275,0.00015796,2]
[398533248,1765799499378,-232.50447191,0.00015796,2]
[398533249,1765799502000,-164.82065278,0.00015796,2]
[398533250,1765799506173,-370.5641563,0.00015796,2]
[398533253,1765799520945,-282.48557006,0.00015796,2]
[398533254,1765799522348,-300.0,0.00015795,2]
[398533255,1765799522373,-4.07135696,0.00015796,2]
[398533256,1765799524364,-269.84571679,0.00015796,2]
[398533257,1765799527499,-257.87093153,0.00015796,2]
[398533258,1765799533492,-303.86662859,0.00015796,2]
[398533259,1765799535293,-253.62,0.00015796,2]
[398533260,1765799537918,-296.89313848,0.00015796,2]
[398533261,1765799553852,-259.44261351,0.00015796,2]
[398533262,1765799555919,-233.05064367,0.00015795,2]
[398533263,1765799561734,-151.0,0.00015793,2]
[398533264,1765799561756,-69.15563278,0.00015795,2]
[398533265,1765799561780,-139.52495132,0.00015795,2]
[398533266,1765799564986,-103.97643612,0.00015795,2]
[398533267,1765799565011,-176.02356388,0.00015795,2]
[398533268,1765799568321,-208.91684873,0.00015795,2]
[398533269,1765799575042,-115.05958739,0.00015795,2]
[398533270,1765799575082,-57.9055809,0.00015795,2]
[398533271,1765799577217,-210.0,0.00015795,2]
[398533272,1765799579983,-58.63499618,0.00015795,2]
[398533273,1765799580005,-127.47062267,0.00015795,2]
[398533274,1765799584411,-223.73662508,0.00015795,2]
[398533275,1765799588781,-148.79275225,0.00015795,2]
[398533276,1765799588803,-46.20724775,0.00015795,2]
[398533277,1765799590413,-219.0159112,0.00015795,2]
[398533278,1765799590435,-66.28181296,0.00015795,2]
[398533279,1765799592545,-380.04752929,0.00015795,2]
[398533280,1765799592572,-56.40063165,0.00015795,2]
[398533281,1765799606718,-324.73233007,0.00015795,2]
[398533282,1765799609327,-118.86703828,0.00015795,2]
[398533283,1765799609353,-45.56748181,0.00015795,2]
[398533284,1765799612024,-248.07545574,0.00015795,2]
[398533285,1765799616111,-192.72675548,0.00015795,2]
[398533286,1765799618284,-13.63030697,0.00015795,2]
[398533287,1765799618309,-159.04502491,0.00015795,2]
[398533288,1765799620940,-256.19160365,0.00015795,2]
[398533289,1765799620966,-194.47341955,0.00015795,2]
[398533290,1765799628652,-250.0,0.00015795,2]
[398533291,1765799630449,-55.52658045,0.00015795,2]
[398533292,1765799630474,-154.77529103,0.00015795,2]
[398533293,1765799632522,-162.9775647,0.00015795,2]
[398533294,1765799634017,-182.24714427,0.00015795,2]
[398533295,1765799634045,-151.67773019,0.00015795,2]
[398533296,1765799636097,-258.30466272,0.00015795,2]
[398533297,1765799638163,-90.01760709,0.00015795,2]
[398533298,1765799638188,-224.90101894,0.00015795,2]
[398533299,1765799642187,-187.87667047,0.00015795,2]
[398533300,1765799643768,-300.0,0.00015794,2]
[398533301,1765799643793,-0.65844906,0.00015795,2]
[398533302,1765799645964,-86.56386153,0.00015795,2]
[398533303,1765799645990,-171.9491819,0.00015795,2]
[398533304,1765799647418,-218.8997221,0.00015795,2]
[398533305,1765799651028,-109.151096,0.00015795,2]
[398533306,1765799651055,-125.05142454,0.00015795,2]
[398533307,1765799655384,-264.93871747,0.00015795,2]
[398533308,1765799656960,-110.00985799,0.00015795,2]
[398533309,1765799656996,-97.20533728,0.00015795,2]
[398533310,1765799660046,-256.99360434,0.00015795,2]
[398533311,1765799940389,-250.51443477,0.00015752,2]
[398533312,1765799942374,-159.62556523,0.00015752,2]
[398533321,1765799953787,503.0,0.000153,5]
[398533341,1765800015825,1046.27833384,0.000157,2]
[398533342,1765800040892,-300.24817944,0.0001579,2]
[398533343,1765800040936,-844.3926,0.0001579,2]
[398533344,1765800041181,-47.65890391,0.0001579,2]
[398533345,1765800041202,-195.0,0.00015791,2]
[398533346,1765800041224,-1.35405951,0.00015791,2]
[398533347,1765800046292,152.0,0.000152,5]
[398533364,1765800141346,3027.33286672,0.00015695,2]
[398533394,1765800337182,281.4445,0.00015693,2]
[398533396,1765800392863,-213.92952528,0.00015752,3]
[398533397,1765800394666,-426.43087931,0.00015752,3]
[398533398,1765800396658,-171.44471803,0.00015752,3]
[398533402,1765800406114,-187.19487738,0.00015752,3]
[398533403,1765800406136,-250.0,0.00015783,2]
[398533404,1765800406156,-248.64594049,0.00015789,2]
[398533405,1765800406177,-300.0,0.00015791,2]
[398533406,1765800406199,-1200.0,0.00015791,2]
[398533407,1765800406221,-216.02237018,0.00015792,2]
[398533408,1765800406243,-500.0,0.00015792,2]
[398533409,1765800406264,-98.13681195,0.00015792,2]
[398533410,1765800414909,811.0,0.000144,5]
[398533411,1765800434839,175.19,0.00012633,2]
[398533412,1765800454442,500.0,0.00015741,2]
[398533413,1765800539629,9500.01,0.00015693,2]
[398533414,1765800539663,58649.0942,0.00015693,2]
[398533415,1765800615517,227.18371677,0.000157,2]
[398533416,1765800633913,-867.29465335,0.00015774,2]
[398533417,1765800633939,-205.77506162,0.00015774,2]
[398533418,1765800633949,-300.0,0.00015791,2]
[398533419,1765800633958,-976.53026329,0.00015791,2]
[398533420,1765800633969,-223.46973671,0.00015791,2]
[398533421,1765800633978,-300.0,0.00015791,2]
[398533422,1765800633987,-56.89087762,0.00015792,2]
[398533423,1765800633998,-264.78884907,0.00015792,2]
[398533424,1765800634007,-263.70106337,0.00015792,2]
[398533425,1765800634016,-261.52676722,0.00015792,2]
[398533426,1765800634025,-354.94690799,0.00015792,2]
[398533427,1765800634036,-145.05309201,0.00015792,2]
[398533428,1765800634045,-500.0,0.00015792,2]
[398533429,1765800634054,-500.0,0.00015792,2]
[398533430,1765800634063,-323.61746877,0.00015792,2]
[398533431,1765800634089,-176.38253123,0.00015792,2]
[398533432,1765800634103,-163.37007491,0.00015792,2]
[398533433,1765800634114,-336.62992509,0.00015792,2]
[398533434,1765800634123,-500.0,0.00015792,2]
[398533435,1765800634132,-137.54892335,0.00015792,2]
[398533436,1765800634144,-362.45107665,0.00015792,2]
[398533437,1765800634153,-500.0,0.00015792,2]
[398533438,1765800634162,-500.0,0.00015792,2]
[398533439,1765800634173,-500.0,0.00015792,2]
[398533440,1765800634182,-500.0,0.00015792,2]
[398533441,1765800634191,-500.0,0.00015792,2]
[398533442,1765800634200,-500.0,0.00015792,2]
[398533443,1765800634209,-500.0,0.00015792,2]
[398533444,1765800634217,-500.0,0.00015792,2]
[398533445,1765800634227,-500.0,0.00015792,2]
[398533446,1765800634236,-500.0,0.00015792,2]
[398533447,1765800634245,-192.40642875,0.00015792,2]
[398533448,1765800634255,-500.0,0.00015792,2]
[398533449,1765800634264,-500.0,0.00015792,2]
[398533450,1765800634273,-500.0,0.00015792,2]
[398533451,1765800634281,-500.0,0.00015792,2]
[398533452,1765800634291,-500.0,0.00015792,2]
[398533453,1765800634300,-500.0,0.00015792,2]
[398533454,1765800634309,-500.0,0.00015792,2]
[398533455,1765800634318,-500.0,0.00015792,2]
[398533456,1765800634328,-500.0,0.00015792,2]
[398533457,1765800634337,-500.0,0.00015792,2]
[398533458,1765800634346,-500.0,0.00015792,2]
[398533459,1765800634356,-416.47716402,0.00015792,2]
[398533460,1765800634365,-1464.16,0.00015792,2]
[398533461,1765800634374,-1623.0795592,0.00015792,2]
[398533462,1765800634386,-2073.29589676,0.00015792,2]
[398533463,1765800634396,-473.32,0.00015792,2]
[398533464,1765800634408,-756.71092669,0.00015792,2]
[398533465,1765800634418,-4806.29998,0.00015792,2]
[398533466,1765800638273,-1959.46587005,0.00015792,2]
[398533467,1765800638283,-478.52516869,0.00015792,2]
[398533468,1765800638295,-1887.99999,0.00015792,2]
[398533469,1765800638328,-1046.26,0.00015792,2]
[398533470,1765800638341,-1294.22726958,0.00015792,2]
[398533471,1765800638353,-1616.09048088,0.00015792,2]
[398533472,1765800638364,-631.32,0.00015792,2]
[398533473,1765800638376,-474.71000045,0.00015792,2]
[398533474,1765800638394,-2028.58391717,0.00015792,2]
[398533475,1765800638406,-675.01067611,0.00015792,2]
[398533476,1765800638446,-7167.08885631,0.00015792,2]
[398533477,1765800638458,-498.98998669,0.00015792,2]
[398533478,1765800638502,-1792.92662112,0.00015792,2]
[398533479,1765800638511,-417.05690014,0.00015793,2]
[398533480,1765800638523,-310.54118651,0.00015793,2]
[398533493,1765800640292,-142.95191335,0.00015793,2]
[398533494,1765800640302,-5355.35830014,0.00015793,2]
[398533495,1765800640489,-6436.80056648,0.00015793,2]
[398533496,1765800640501,-591.46997237,0.00015793,2]
[398533499,1765800641163,-1.7e-07,0.00015793,2]
[398533507,1765800643292,-41866.71137882,0.00015793,2]
[398533508,1765800643304,-650.0,0.00015793,2]
[398533509,1765800643357,-6019.73832867,0.00015793,2]
[398533510,1765800643377,-259.19169647,0.00015793,2]
[398533511,1765800643388,-2493.1,0.00015793,2]
[398533512,1765800643400,-649.83334176,0.00015793,2]
[398533513,1765800643415,-7270.38381241,0.00015793,2]
[398533514,1765800643462,-553.81832591,0.00015793,2]
[398533515,1765800643473,-631.0,0.00015793,2]
[398533519,1765800647273,-322.8916,0.00015793,2]
[398533520,1765800647285,-2954.93571423,0.00015793,2]
[398533521,1765800647297,-409.3595,0.00015793,2]
[398533522,1765800647308,-325.0,0.00015793,2]
[398533523,1765800647319,-1360.08837577,0.00015793,2]
[398533524,1765800647330,-4478.05,0.00015793,2]
[398533525,1765800647351,-2832.68514778,0.00015793,2]
[398533526,1765800647373,-4951.46414392,0.00015793,2]
[398533527,1765800647384,-1104.89183922,0.00015793,2]
[398533528,1765800651310,2724.59958012,0.00015695,2]
[398533530,1765800660775,298.0,0.000139,5]
[398533531,1765800749001,737121.15101628,0.00015693,2]
[398533532,1765800749027,22878.84898372,0.00015693,2]
[398533533,1765800763393,1000.0,0.00015693,2]
[398533534,1765800769382,2014.8455,0.00015693,2]
[398533536,1765800785722,1385.49,0.00022,30]
[398533538,1765800816596,500.0,0.00015693,2]
[398533539,1765800816632,4905.84848569,0.00015693,2]
[398533540,1765800816680,7548.04816564,0.00015693,2]
[398533541,1765800817009,375.16883083,0.00015693,2]
[398533542,1765800853042,200.0,0.00015693,2]
[398533544,1765800886002,-200.0,0.00015786,2]
[398533545,1765800886025,-264.70689466,0.00015791,2]
[398533546,1765800918749,711080.5873,0.00015693,2]
[398533547,1765800938309,3338.7952,0.00015693,2]
[398533548,1765800976855,166.66,0.0001487,2]
[398533549,1765800976924,166.66,0.00015183,2]
[398533550,1765800976987,166.66,0.00015496,2]
[398533552,1765801007795,1600.0,0.00015695,2]
[398533553,1765801094372,362353.002,0.00015693,2]
[398533554,1765801249735,500.0,0.00015715,2]
[398533555,1765801278079,214.26188863,0.00015476,2]
[398533556,1765801553361,9285.74811137,0.000149,2]
[398533557,1765801553384,10714.27188863,0.000149,2]
[398533558,1765801569756,1228.56851,7.945e-05,2]
[398533559,1765801644947,221.0,0.000157,5]
[398533561,1765801693565,7833.75,0.00015621,2]
[398533562,1765801698565,200.0,0.00015647,2]
[398533564,1765801826853,150.0,0.00015685,2]
[398533574,1765801831485,-500.0,0.0001578,2]
[398533575,1765801831495,-195.0,0.00015782,2]
[398533576,1765801831504,-21.66,0.00015784,2]
[398533577,1765801831543,-129.34,0.00015784,2]
[398533578,1765801831552,-151.0,0.00015784,2]
[398533579,1765801831561,-151.0,0.00015784,2]
[398533580,1765801831570,-433.0,0.00015791,2]
[398533581,1765801831579,-78.15878356,0.00015791,2]
[398533582,1765801831589,-221.84121644,0.00015791,2]
[398533583,1765801831598,-300.0,0.00015791,2]
[398533585,1765801831607,-1200.0,0.00015791,2]
[398533587,1765801831616,-300.0,0.00015791,2]
[398533589,1765801831625,-300.0,0.00015791,2]
[398533591,1765801831634,-1000.0,0.00015792,2]
[398533592,1765801831642,-500.0,0.00015792,2]
[398533593,1765801831650,-500.0,0.00015792,2]
[398533595,1765801831659,-500.0,0.00015792,2]
[398533597,1765801831667,-500.0,0.00015792,2]
[398533599,1765801831676,-500.0,0.00015792,2]
[398533601,1765801831685,-500.0,0.00015792,2]
[398533603,1765801831695,-500.0,0.00015792,2]
[398533605,1765801831704,-500.0,0.00015792,2]
[398533607,1765801831713,-500.0,0.00015792,2]
[398533609,1765801831722,-256.72003987,0.00015792,2]
[398533611,1765801831731,-500.0,0.00015792,2]
[398533613,1765801831740,-500.0,0.00015792,2]
[398533614,1765801831749,-500.0,0.00015792,2]
[398533615,1765801831758,-500.0,0.00015792,2]
[398533616,1765801831766,-500.0,0.00015792,2]
[398533617,1765801831776,-500.0,0.00015792,2]
[398533618,1765801831784,-317.50181854,0.00015792,2]
[398533619,1765801831795,-500.0,0.00015792,2]
[398533620,1765801831805,-500.0,0.00015792,2]
[398533621,1765801831815,-500.0,0.00015792,2]
[398533622,1765801831826,-500.0,0.00015792,2]
[398533623,1765801831836,-500.0,0.00015792,2]
[398533624,1765801831845,-500.0,0.00015792,2]
[398533625,1765801831855,-500.0,0.00015792,2]
[398533626,1765801831866,-500.0,0.00015792,2]
[398533627,1765801831875,-500.0,0.00015792,2]
[398533628,1765801831884,-500.0,0.00015792,2]
[398533629,1765801831894,-500.0,0.00015792,2]
[398533630,1765801831903,-500.0,0.00015792,2]
[398533631,1765801831912,-500.0,0.00015792,2]
[398533632,1765801831921,-334.90233438,0.00015792,2]
[398533633,1765801831930,-198.12403429,0.00015792,2]
[398533634,1765801831939,-500.0,0.00015792,2]
[398533635,1765801831948,-500.0,0.00015792,2]
[398533636,1765801831957,-186.29027911,0.00015792,2]
[398533637,1765801831967,-500.0,0.00015792,2]
[398533638,1765801831976,-500.0,0.00015792,2]
[398533639,1765801831986,-159.7745431,0.00015792,2]
[398533640,1765801831996,-350.33417502,0.00015792,2]
[398533641,1765801832006,-1571.89,0.00015792,2]
[398533642,1765801832015,-14359.5451501,0.00015793,2]
[398533643,1765801832024,-12153.4055984,0.00015793,2]
[398533644,1765801832033,-99232.0300046,0.00015793,2]
[398533645,1765801832043,-415.55669103,0.00015793,2]
[398533646,1765801832054,-500.0,0.00015795,2]
[398533647,1765801832063,-500.0,0.00015795,2]
[398533648,1765801832073,-500.0,0.00015795,2]
[398533649,1765801832083,-500.0,0.00015795,2]
[398533650,1765801832093,-500.0,0.00015795,2]
[398533651,1765801832103,-500.0,0.00015795,2]
[398533652,1765801832113,-500.0,0.00015795,2]
[398533653,1765801832123,-500.0,0.00015795,2]
[398533654,1765801832133,-500.0,0.00015795,2]
[398533655,1765801832143,-500.0,0.00015795,2]
[398533656,1765801832153,-500.0,0.00015795,2]
[398533657,1765801832162,-500.0,0.00015795,2]
[398533658,1765801832173,-500.0,0.00015795,2]
[398533659,1765801832182,-166.66,0.00015809,2]
[398533660,1765801832192,-611.14,0.00015852,2]
[398533661,1765801832202,-500.0,0.00015873,2]
[398533662,1765801832211,-151.21565912,0.00015873,2]
[398533663,1765801832221,-184.59074436,0.00015873,2]
[398533664,1765801832229,-515.04074091,0.00015873,2]
[398533665,1765801832239,-1000.0,0.00015874,2]
[398533666,1765801832248,-8028.19341131,0.00015984,2]
[398533667,1765801832258,-1571.89,0.00016066,2]
[398533668,1765801832267,-166.66,0.00016122,2]
[398533669,1765801832278,-500.0,0.00016173,2]
[398533670,1765801832288,-606.00059495,0.00016173,2]
[398533671,1765801832298,-500.0,0.00016173,2]
[398533672,1765801832307,-500.0,0.00016173,2]
[398533673,1765801832317,-500.0,0.00016173,2]
[398533674,1765801832327,-500.82958274,0.00016173,2]
[398533675,1765801832336,-500.0,0.00016173,2]
[398533676,1765801832347,-500.0,0.00016173,2]
[398533677,1765801832357,-1571.89,0.0001634,2]
[398533678,1765801832368,-250.0,0.00016354,2]
[398533679,1765801832378,-1412.28,0.000164,2]
[398533680,1765801832388,-170.46,0.000164,2]
[398533681,1765801832403,-340.92,0.000164,2]
[398533682,1765801832414,-150.0,0.000164,2]
[398533683,1765801832424,-170.46,0.000164,2]
[398533684,1765801832434,-166.66,0.00016435,2]
[398533685,1765801832444,-500.0,0.00016437,2]
[398533686,1765801832460,-248.38461707,0.00016438,2]
[398533687,1765801832470,-500.0,0.00016438,2]
[398533688,1765801832480,-500.0,0.00016438,2]
[398533689,1765801832490,-500.0,0.00016438,2]
[398533690,1765801832500,-500.0,0.00016438,2]
[398533691,1765801832510,-500.0,0.00016438,2]
[398533692,1765801832520,-500.0,0.00016438,2]
[398533693,1765801832531,-500.0,0.00016438,2]
[398533694,1765801832540,-500.0,0.00016438,2]
[398533695,1765801832550,-500.0,0.00016438,2]
[398533696,1765801832560,-500.0,0.00016438,2]
[398533697,1765801832570,-550.0,0.00016438,2]
[398533698,1765801832580,-500.0,0.00016438,2]
[398533699,1765801832590,-500.0,0.00016438,2]
[398533700,1765801832600,-500.0,0.00016438,2]
[398533701,1765801832610,-500.0,0.00016438,2]
[398533702,1765801832619,-500.0,0.00016438,2]
[398533703,1765801832629,-500.0,0.00016438,2]
[398533704,1765801832638,-500.0,0.00016438,2]
[398533705,1765801832647,-500.0,0.00016438,2]
[398533706,1765801832657,-500.0,0.00016438,2]
[398533707,1765801832666,-500.0,0.00016438,2]
[398533708,1765801832677,-500.0,0.00016438,2]
[398533709,1765801832687,-500.0,0.00016438,2]
[398533710,1765801832695,-377.89589388,0.00016438,2]
[398533711,1765801832705,-500.0,0.00016438,2]
[398533712,1765801832714,-500.0,0.00016438,2]
[398533713,1765801832723,-500.0,0.00016438,2]
[398533714,1765801832732,-500.0,0.00016438,2]
[398533715,1765801832740,-5515.45,0.00016438,2]
[398533716,1765801832750,-168.02,0.00016438,2]
[398533717,1765801832759,-553.28,0.00016438,2]
[398533718,1765801832768,-553.28,0.00016438,2]
[398533719,1765801832778,-1078.62,0.00016438,2]
[398533720,1765801832787,-1000.0,0.00016453,2]
[398533721,1765801832797,-576.0,0.00016473,2]
[398533722,1765801832806,-1334.0,0.00016538,2]
[398533723,1765801832816,-1214.2,0.00016553,2]
[398533724,1765801832828,-200.0,0.00016553,2]
[398533725,1765801832837,-502.03126221,0.00016554,2]
[398533726,1765801832846,-151.0,0.00016554,2]
[398533727,1765801832855,-1502.0,0.00016554,2]
[398533728,1765801832865,-553.64373807,0.00016554,2]
[398533729,1765801832875,-151.0,0.00016554,2]
[398533730,1765801832884,-660.69602044,0.00016554,2]
[398533731,1765801832894,-500.0,0.00016554,2]
[398533732,1765801832903,-200.0,0.00016554,2]
[398533733,1765801832913,-207.4,0.00016554,2]
[398533734,1765801832922,-215.0738,0.00016554,2]
[398533735,1765801832931,-223.0315306,0.00016554,2]
[398533736,1765801832940,-231.28369723,0.00016554,2]
[398533737,1765801832949,-239.84119403,0.00016554,2]
[398533738,1765801832958,-248.71531821,0.00016554,2]
[398533739,1765801832967,-257.91778498,0.00016554,2]
[398533740,1765801832977,-267.46074303,0.00016554,2]
[398533741,1765801832986,-620.0,0.00016554,2]
[398533742,1765801832994,-9000.0,0.00016554,2]
[398533743,1765801833004,-300.0,0.00016554,2]
[398533744,1765801833014,-164.0,0.00016566,2]
[398533745,1765801833024,-250.0,0.00016575,2]
[398533746,1765801833033,-1571.89,0.00016614,2]
[398533747,1765801833042,-2521.67664136,0.0001666,2]
[398533748,1765801833051,-1000.0,0.00016721,2]
[398533749,1765801833060,-1000.0,0.00016721,2]
[398533750,1765801833070,-1000.0,0.00016721,2]
[398533751,1765801833079,-1000.0,0.00016721,2]
[398533752,1765801833088,-150.0,0.00016725,2]
[398533753,1765801833097,-500.0,0.00016725,2]
[398533754,1765801833107,-500.0,0.00016725,2]
[398533755,1765801833116,-150.0,0.00016725,2]
[398533756,1765801833125,-500.0,0.00016725,2]
[398533757,1765801833135,-265.99937066,0.00016725,2]
[398533758,1765801833144,-150.0,0.00016725,2]
[398533759,1765801833153,-254.21306055,0.00016725,2]
[398533760,1765801833163,-500.0,0.00016725,2]
[398533761,1765801833172,-456.0,0.00016725,2]
[398533762,1765801833181,-150.0,0.00016725,2]
[398533763,1765801833190,-500.0,0.00016725,2]
[398533764,1765801833200,-500.0,0.00016725,2]
[398533765,1765801833209,-552.0,0.00016725,2]
[398533766,1765801833218,-500.0,0.00016725,2]
[398533767,1765801833228,-152.38694355,0.00016725,2]
[398533768,1765801833238,-500.0,0.00016725,2]
[398533769,1765801833247,-500.0,0.00016725,2]
[398533770,1765801833257,-500.0,0.00016725,2]
[398533771,1765801833267,-155.07428394,0.00016725,2]
[398533772,1765801833277,-150.0,0.00016725,2]
[398533773,1765801833286,-161.31415046,0.00016725,2]
[398533774,1765801833296,-228.81809239,0.00016725,2]
[398533775,1765801833305,-150.0,0.00016725,2]
[398533776,1765801833315,-500.0,0.00016725,2]
[398533777,1765801833325,-150.82561092,0.00016725,2]
[398533778,1765801833335,-150.0,0.00016725,2]
[398533779,1765801833344,-150.0,0.00016725,2]
[398533780,1765801833354,-152.68369847,0.00016725,2]
[398533781,1765801833364,-150.0,0.00016725,2]
[398533782,1765801833373,-150.0,0.00016725,2]
[398533783,1765801833383,-150.0,0.00016725,2]
[398533784,1765801833393,-170.21872884,0.00016725,2]
[398533785,1765801833403,-150.0,0.00016725,2]
[398533786,1765801833413,-155.11,0.00016743,2]
[398533787,1765801833422,-500.0,0.00016822,2]
[398533788,1765801833431,-6060.97755812,0.0001683,2]
[398533789,1765801833442,-6060.97755803,0.00016842,2]
[398533790,1765801833452,-242.77,0.00016852,2]
[398533791,1765801833461,-6060.97755803,0.00016855,2]
[398533792,1765801833470,-200.0,0.00016862,2]
[398533793,1765801833479,-500.0,0.00016862,2]
[398533794,1765801833488,-550.08427247,0.00016862,2]
[398533795,1765801833497,-150.0,0.00016862,2]
[398533796,1765801833507,-500.0,0.00016862,2]
[398533797,1765801833516,-500.0,0.00016862,2]
[398533798,1765801833526,-456.0,0.00016862,2]
[398533799,1765801833536,-500.0,0.00016862,2]
[398533800,1765801833546,-500.0,0.00016862,2]
[398533801,1765801833555,-552.0,0.00016862,2]
[398533802,1765801833566,-500.0,0.00016862,2]
[398533803,1765801833580,-500.0,0.00016862,2]